[Event "Titled Tuesday Blitz May 03 Early 2022"]
[White "Preotu, Razvan"]
[Black "Pranav, V"]
[WhiteFideId "2613280"]
[BlackFideId "25060783"]
[WhiteElo "2407"]
[BlackElo "2349"]
[Result "0-1"]
[Round "10"]
[TimeControl "180+1"]
[Date "2022.05.03"]
[WhiteClock "0:00:01"]
[BlackClock "0:00:42"]

1. e4 {[%clk 0:03:00]}  e5 {[%clk 0:02:59]} 2. Nf3 {[%clk 0:03:01]}  Nc6 {[%clk 0:03:00]} 3. Bc4 {[%clk 0:03:01]}  Nf6 {[%clk 0:02:59]} 4. d3 {[%clk 0:03:01]}  h6 {[%clk 0:03:00]} 5. O-O {[%clk 0:02:59]}  d6 {[%clk 0:03:00]} 6. a4 {[%clk 0:02:56]}  g5 {[%clk 0:03:00]} 7. a5 {[%clk 0:02:56]}  Rg8 {[%clk 0:02:55]} 8. c3 {[%clk 0:02:38]}  a6 {[%clk 0:02:51]} 9. d4 {[%clk 0:02:26]}  Bg4 {[%clk 0:02:50]} 10. Qb3 {[%clk 0:02:23]}  Qd7 {[%clk 0:02:31]} 11. Qxb7 {[%clk 0:01:39]}  Ra7 {[%clk 0:02:26]} 12. Qb3 {[%clk 0:01:34]}  Bxf3 {[%clk 0:02:26]} 13. gxf3 {[%clk 0:01:34]}  exd4 {[%clk 0:02:18]} 14. cxd4 {[%clk 0:01:22]}  Nd8 {[%clk 0:02:04]} 15. e5 {[%clk 0:00:58]}  Nh5 {[%clk 0:02:02]} 16. Re1 {[%clk 0:00:53]}  dxe5 {[%clk 0:01:58]} 17. Rxe5+ {[%clk 0:00:51]}  Be7 {[%clk 0:01:57]} 18. Nc3 {[%clk 0:00:43]}  Kf8 {[%clk 0:01:57]} 19. Ne4 {[%clk 0:00:31]}  Nc6 {[%clk 0:01:42]} 20. Rd5 {[%clk 0:00:28]}  Qh3 {[%clk 0:01:39]} 21. Bf1 {[%clk 0:00:20]}  Qe6 {[%clk 0:01:34]} 22. Nc5 {[%clk 0:00:16]}  Bxc5 {[%clk 0:01:29]} 23. dxc5 {[%clk 0:00:17]}  Nf4 {[%clk 0:01:29]} 24. Bxf4 {[%clk 0:00:14]}  gxf4+ {[%clk 0:01:30]} 25. Kh1 {[%clk 0:00:14]}  Ra8 {[%clk 0:01:12]} 26. Qc4 {[%clk 0:00:12]}  Qf6 {[%clk 0:01:06]} 27. Re1 {[%clk 0:00:09]}  Qxb2 {[%clk 0:00:57]} 28. Qe2 {[%clk 0:00:03]}  Qc3 {[%clk 0:00:55]} 29. Rf5 {[%clk 0:00:02]}  Rg5 {[%clk 0:00:43]} 30. Rxf4 {[%clk 0:00:02]}  Re5 {[%clk 0:00:43]} 31. Re4 {[%clk 0:00:03]}  Rae8 {[%clk 0:00:43]} 32. Bg2 {[%clk 0:00:03]}  f5 {[%clk 0:00:42]} 33. Rd1 {[%clk 0:00:01]}  fxe4 {[%clk 0:00:42]} 0-1


[Site "https://www.chess.com"]

[Event "Titled Tuesday Blitz May 03 Early 2022"]
[White "Prraneeth Vuppala"]
[Black "Ramirez Vido, Robert Yorisan"]
[WhiteFideId "46622373"]
[BlackFideId "3513823"]
[WhiteElo "1958"]
[BlackElo "2324"]
[Result "0-1"]
[Round "10"]
[TimeControl "180+1"]
[Date "2022.05.03"]
[WhiteClock "0:00:10"]
[BlackClock "0:00:38"]

1. e4 {[%clk 0:03:00]}  d6 {[%clk 0:03:00]} 2. d4 {[%clk 0:03:00]}  Nf6 {[%clk 0:03:01]} 3. Nc3 {[%clk 0:03:00]}  g6 {[%clk 0:03:01]} 4. Be3 {[%clk 0:02:41]}  c6 {[%clk 0:03:00]} 5. Qd2 {[%clk 0:02:32]}  b5 {[%clk 0:02:59]} 6. Bd3 {[%clk 0:02:26]}  Nbd7 {[%clk 0:02:58]} 7. Nf3 {[%clk 0:02:22]}  Ng4 {[%clk 0:02:57]} 8. O-O {[%clk 0:02:12]}  Nxe3 {[%clk 0:02:57]} 9. fxe3 {[%clk 0:02:11]}  Bg7 {[%clk 0:02:56]} 10. a4 {[%clk 0:02:05]}  b4 {[%clk 0:02:56]} 11. Ne2 {[%clk 0:02:06]}  a5 {[%clk 0:02:56]} 12. c3 {[%clk 0:02:05]}  c5 {[%clk 0:02:54]} 13. Bc4 {[%clk 0:02:02]}  O-O {[%clk 0:02:47]} 14. Ng3 {[%clk 0:01:45]}  Nb6 {[%clk 0:02:42]} 15. Bb3 {[%clk 0:01:44]}  c4 {[%clk 0:02:37]} 16. Bc2 {[%clk 0:01:43]}  b3 {[%clk 0:02:37]} 17. Bd1 {[%clk 0:01:40]}  Bd7 {[%clk 0:02:37]} 18. Be2 {[%clk 0:01:38]}  Qc7 {[%clk 0:02:36]} 19. Ra3 {[%clk 0:01:15]}  Nxa4 {[%clk 0:02:07]} 20. Rfa1 {[%clk 0:01:13]}  Nb6 {[%clk 0:02:07]} 21. h4 {[%clk 0:01:04]}  a4 {[%clk 0:02:05]} 22. h5 {[%clk 0:01:04]}  d5 {[%clk 0:01:59]} 23. exd5 {[%clk 0:01:03]}  Qxg3 {[%clk 0:01:58]} 24. e4 {[%clk 0:01:00]}  Bh3 {[%clk 0:01:47]} 25. Bf1 {[%clk 0:00:55]}  Bg4 {[%clk 0:01:47]} 26. Nh2 {[%clk 0:00:50]}  gxh5 {[%clk 0:01:41]} 27. Be2 {[%clk 0:00:35]}  Bxe2 {[%clk 0:01:37]} 28. Qxe2 {[%clk 0:00:36]}  h4 {[%clk 0:01:28]} 29. Kh1 {[%clk 0:00:33]}  h3 {[%clk 0:01:21]} 30. Rg1 {[%clk 0:00:33]}  Kh8 {[%clk 0:01:04]} 31. gxh3 {[%clk 0:00:28]}  Qxh3 {[%clk 0:01:04]} 32. Qf2 {[%clk 0:00:27]}  Bh6 {[%clk 0:00:57]} 33. Raa1 {[%clk 0:00:22]}  Be3 {[%clk 0:00:54]} 34. Qf1 {[%clk 0:00:15]}  Qxf1 {[%clk 0:00:51]} 35. Rgxf1 {[%clk 0:00:16]}  a3 {[%clk 0:00:46]} 36. bxa3 {[%clk 0:00:14]}  b2 {[%clk 0:00:43]} 37. Rab1 {[%clk 0:00:13]}  Bc1 {[%clk 0:00:43]} 38. Nf3 {[%clk 0:00:11]}  Rxa3 {[%clk 0:00:40]} 39. Ne5 {[%clk 0:00:10]}  Ra1 {[%clk 0:00:38]} 0-1


[Site "https://www.chess.com"]

[Event "Titled Tuesday Blitz May 03 Early 2022"]
[White "Ratnakaran, K."]
[Black "Rustemov, Alexander"]
[WhiteFideId "5005507"]
[BlackFideId "4119002"]
[WhiteElo "2407"]
[BlackElo "2708"]
[Result "0-1"]
[Round "10"]
[TimeControl "180+1"]
[Date "2022.05.03"]
[WhiteClock "0:01:19"]
[BlackClock "0:00:33"]

1. e4 {[%clk 0:03:00]}  e6 {[%clk 0:02:59]} 2. d4 {[%clk 0:03:00]}  d5 {[%clk 0:03:00]} 3. e5 {[%clk 0:03:00]}  c5 {[%clk 0:02:59]} 4. c3 {[%clk 0:03:01]}  Qb6 {[%clk 0:02:59]} 5. Nf3 {[%clk 0:03:01]}  Bd7 {[%clk 0:02:59]} 6. Be2 {[%clk 0:03:01]}  Bb5 {[%clk 0:02:59]} 7. O-O {[%clk 0:03:00]}  Bxe2 {[%clk 0:02:59]} 8. Qxe2 {[%clk 0:03:00]}  Qa6 {[%clk 0:02:59]} 9. Qe3 {[%clk 0:02:59]}  cxd4 {[%clk 0:02:47]} 10. cxd4 {[%clk 0:02:58]}  Bb4 {[%clk 0:02:44]} 11. a3 {[%clk 0:02:56]}  Ne7 {[%clk 0:02:43]} 12. Qg5 {[%clk 0:02:55]}  Ng6 {[%clk 0:02:23]} 13. h4 {[%clk 0:02:54]}  Be7 {[%clk 0:02:09]} 14. Qh5 {[%clk 0:02:51]}  Nc6 {[%clk 0:02:00]} 15. Nc3 {[%clk 0:02:47]}  Rc8 {[%clk 0:01:52]} 16. Bg5 {[%clk 0:02:44]}  h6 {[%clk 0:01:46]} 17. Be3 {[%clk 0:02:41]}  Na5 {[%clk 0:01:37]} 18. Rac1 {[%clk 0:02:38]}  Nc4 {[%clk 0:01:33]} 19. Rc2 {[%clk 0:02:37]}  Nxe3 {[%clk 0:01:24]} 20. fxe3 {[%clk 0:02:37]}  Qd3 {[%clk 0:01:24]} 21. Rff2 {[%clk 0:02:22]}  O-O {[%clk 0:01:23]} 22. Rce2 {[%clk 0:01:52]}  Bxa3 {[%clk 0:01:16]} 23. Ne1 {[%clk 0:01:51]}  Qc4 {[%clk 0:01:12]} 24. Nd1 {[%clk 0:01:45]}  Bb4 {[%clk 0:01:04]} 25. Qg4 {[%clk 0:01:34]}  Qc1 {[%clk 0:01:00]} 26. Rc2 {[%clk 0:01:32]}  Rxc2 {[%clk 0:00:52]} 27. Rxc2 {[%clk 0:01:32]}  Qb1 {[%clk 0:00:51]} 28. Rc7 {[%clk 0:01:29]}  Bxe1 {[%clk 0:00:50]} 29. h5 {[%clk 0:01:30]}  Nh4 {[%clk 0:00:47]} 30. Rxb7 {[%clk 0:01:28]}  Nf5 {[%clk 0:00:38]} 31. Qe2 {[%clk 0:01:19]}  Bh4 {[%clk 0:00:35]} 32. g4 {[%clk 0:01:19]}  Nxe3 {[%clk 0:00:33]} 33. Qxe3 {[%clk 0:01:19]}  Qxd1+ {[%clk 0:00:33]} 34. Kg2 {[%clk 0:01:19]}  Qxg4+ {[%clk 0:00:33]} 0-1


[Site "https://www.chess.com"]

[Event "Titled Tuesday Blitz May 03 Early 2022"]
[White "Sanchez, Robert"]
[Black "Priyanka, K"]
[WhiteFideId "2034360"]
[BlackFideId "5082986"]
[WhiteElo "2439"]
[BlackElo "1905"]
[Result "0-1"]
[Round "10"]
[TimeControl "180+1"]
[Date "2022.05.03"]
[WhiteClock "0:01:19"]
[BlackClock "0:01:10"]

1. e4 {[%clk 0:03:00]}  c5 {[%clk 0:02:59]} 2. Nf3 {[%clk 0:03:00]}  d6 {[%clk 0:02:59]} 3. d4 {[%clk 0:03:01]}  cxd4 {[%clk 0:03:00]} 4. Nxd4 {[%clk 0:03:02]}  Nf6 {[%clk 0:03:00]} 5. Nc3 {[%clk 0:03:02]}  a6 {[%clk 0:03:00]} 6. Be3 {[%clk 0:03:02]}  e5 {[%clk 0:03:00]} 7. Nb3 {[%clk 0:03:02]}  Be7 {[%clk 0:03:00]} 8. f3 {[%clk 0:03:03]}  Be6 {[%clk 0:02:59]} 9. Qd2 {[%clk 0:03:03]}  Nbd7 {[%clk 0:02:59]} 10. O-O-O {[%clk 0:03:04]}  O-O {[%clk 0:02:59]} 11. g4 {[%clk 0:03:04]}  b5 {[%clk 0:02:59]} 12. g5 {[%clk 0:03:04]}  Nh5 {[%clk 0:02:59]} 13. Kb1 {[%clk 0:03:02]}  Rc8 {[%clk 0:02:49]} 14. Nd5 {[%clk 0:03:01]}  Bxd5 {[%clk 0:02:49]} 15. exd5 {[%clk 0:03:01]}  f5 {[%clk 0:02:40]} 16. gxf6 {[%clk 0:02:50]}  Ndxf6 {[%clk 0:02:36]} 17. Bh3 {[%clk 0:02:49]}  Rc4 {[%clk 0:02:30]} 18. Be6+ {[%clk 0:02:49]}  Kh8 {[%clk 0:02:30]} 19. Na5 {[%clk 0:02:47]}  Ra4 {[%clk 0:02:19]} 20. Nc6 {[%clk 0:02:47]}  Qc7 {[%clk 0:02:17]} 21. b3 {[%clk 0:02:40]}  Rh4 {[%clk 0:02:16]} 22. Bg5 {[%clk 0:02:40]}  Rf4 {[%clk 0:02:04]} 23. Bxf4 {[%clk 0:02:38]}  Nxf4 {[%clk 0:02:05]} 24. Nb4 {[%clk 0:02:29]}  a5 {[%clk 0:01:56]} 25. Nd3 {[%clk 0:02:26]}  N4xd5 {[%clk 0:01:46]} 26. Rc1 {[%clk 0:02:12]}  Nc3+ {[%clk 0:01:38]} 27. Ka1 {[%clk 0:02:06]}  d5 {[%clk 0:01:38]} 28. Rhe1 {[%clk 0:01:57]}  e4 {[%clk 0:01:33]} 29. fxe4 {[%clk 0:01:55]}  Nfxe4 {[%clk 0:01:33]} 30. Rxe4 {[%clk 0:01:38]}  dxe4 {[%clk 0:01:27]} 31. Nb2 {[%clk 0:01:33]}  Bf6 {[%clk 0:01:21]} 32. Rf1 {[%clk 0:01:27]}  Qe7 {[%clk 0:01:19]} 33. Bg4 {[%clk 0:01:19]}  Qa3 {[%clk 0:01:10]} 0-1


[Site "https://www.chess.com"]

[Event "Titled Tuesday Blitz May 03 Early 2022"]
[White "Shimanov, Aleksandr"]
[Black "Lazavik, Denis"]
[WhiteFideId "4198603"]
[BlackFideId "13515110"]
[WhiteElo "2636"]
[BlackElo "2437"]
[Result "0-1"]
[Round "10"]
[TimeControl "180+1"]
[Date "2022.05.03"]
[WhiteClock "0:00:01"]
[BlackClock "0:00:10"]

1. b3 {[%clk 0:03:00]}  d5 {[%clk 0:02:58]} 2. Bb2 {[%clk 0:03:00]}  c6 {[%clk 0:02:59]} 3. Nf3 {[%clk 0:02:56]}  Bf5 {[%clk 0:02:59]} 4. d3 {[%clk 0:02:54]}  Nf6 {[%clk 0:02:59]} 5. Nbd2 {[%clk 0:02:54]}  e6 {[%clk 0:02:54]} 6. g3 {[%clk 0:02:52]}  h6 {[%clk 0:02:53]} 7. Bg2 {[%clk 0:02:52]}  Be7 {[%clk 0:02:53]} 8. Ne5 {[%clk 0:02:51]}  O-O {[%clk 0:02:53]} 9. e4 {[%clk 0:02:51]}  Bh7 {[%clk 0:02:53]} 10. O-O {[%clk 0:02:52]}  Nbd7 {[%clk 0:02:53]} 11. Nxd7 {[%clk 0:02:46]}  Nxd7 {[%clk 0:02:52]} 12. Qe2 {[%clk 0:02:47]}  Bf6 {[%clk 0:02:50]} 13. d4 {[%clk 0:02:44]}  a5 {[%clk 0:02:49]} 14. c4 {[%clk 0:02:41]}  dxe4 {[%clk 0:02:44]} 15. Nxe4 {[%clk 0:02:41]}  Be7 {[%clk 0:02:43]} 16. Rad1 {[%clk 0:02:41]}  Bxe4 {[%clk 0:02:16]} 17. Bxe4 {[%clk 0:02:40]}  Nf6 {[%clk 0:02:15]} 18. Bf3 {[%clk 0:02:07]}  a4 {[%clk 0:02:14]} 19. Qc2 {[%clk 0:02:04]}  axb3 {[%clk 0:02:08]} 20. axb3 {[%clk 0:02:05]}  Qb6 {[%clk 0:02:07]} 21. Ra1 {[%clk 0:02:00]}  Rfd8 {[%clk 0:02:05]} 22. Kg2 {[%clk 0:02:00]}  Ne8 {[%clk 0:01:59]} 23. Rxa8 {[%clk 0:01:53]}  Rxa8 {[%clk 0:01:58]} 24. d5 {[%clk 0:01:54]}  cxd5 {[%clk 0:01:48]} 25. cxd5 {[%clk 0:01:55]}  exd5 {[%clk 0:01:47]} 26. Bxd5 {[%clk 0:01:53]}  Bf6 {[%clk 0:01:39]} 27. Qg6 {[%clk 0:01:04]}  Qc7 {[%clk 0:01:12]} 28. Bc1 {[%clk 0:01:04]}  Qd7 {[%clk 0:00:56]} 29. Qe4 {[%clk 0:00:59]}  Rd8 {[%clk 0:00:51]} 30. Bc4 {[%clk 0:00:35]}  Nd6 {[%clk 0:00:50]} 31. Qd5 {[%clk 0:00:17]}  Nxc4 {[%clk 0:00:42]} 32. Qxc4 {[%clk 0:00:13]}  b5 {[%clk 0:00:42]} 33. Qe4 {[%clk 0:00:13]}  Qd3 {[%clk 0:00:38]} 34. Qe3 {[%clk 0:00:10]}  Qd5+ {[%clk 0:00:35]} 35. Kg1 {[%clk 0:00:09]}  Rc8 {[%clk 0:00:21]} 36. Qe2 {[%clk 0:00:04]}  Qxb3 {[%clk 0:00:19]} 37. Be3 {[%clk 0:00:04]}  Qc4 {[%clk 0:00:17]} 38. Qf3 {[%clk 0:00:04]}  Qc6 {[%clk 0:00:16]} 39. Qf5 {[%clk 0:00:04]}  Rb8 {[%clk 0:00:10]} 40. Rd1 {[%clk 0:00:03]}  Qe6 {[%clk 0:00:09]} 41. Qxe6 {[%clk 0:00:02]}  fxe6 {[%clk 0:00:10]} 42. Rd3 {[%clk 0:00:02]}  b4 {[%clk 0:00:10]} 43. Rb3 {[%clk 0:00:02]}  Bc3 {[%clk 0:00:10]} 44. Kf1 {[%clk 0:00:03]}  Kf7 {[%clk 0:00:08]} 45. Ke2 {[%clk 0:00:03]}  e5 {[%clk 0:00:09]} 46. Kd3 {[%clk 0:00:03]}  Ke6 {[%clk 0:00:10]} 47. Kc4 {[%clk 0:00:04]}  Rc8+ {[%clk 0:00:10]} 48. Kd3 {[%clk 0:00:03]}  Kd5 {[%clk 0:00:10]} 49. Rb1 {[%clk 0:00:03]}  e4+ {[%clk 0:00:10]} 50. Kc2 {[%clk 0:00:02]}  Kc4 {[%clk 0:00:10]} 51. Rd1 {[%clk 0:00:02]}  b3+ {[%clk 0:00:09]} 52. Kc1 {[%clk 0:00:01]}  Ra8 {[%clk 0:00:10]} 0-1


[Site "https://www.chess.com"]

[Event "Titled Tuesday Blitz May 03 Early 2022"]
[White "Stanisz, Patryk"]
[Black "Murtazin, Bulat"]
[WhiteFideId "1123106"]
[BlackFideId "24151351"]
[WhiteElo "1833"]
[BlackElo "2329"]
[Result "0-1"]
[Round "10"]
[TimeControl "180+1"]
[Date "2022.05.03"]
[WhiteClock "0:00:17"]
[BlackClock "0:00:19"]

1. Nf3 {[%clk 0:03:00]}  Nf6 {[%clk 0:02:59]} 2. g3 {[%clk 0:03:01]}  g6 {[%clk 0:02:59]} 3. Bg2 {[%clk 0:03:02]}  Bg7 {[%clk 0:03:00]} 4. O-O {[%clk 0:03:02]}  O-O {[%clk 0:03:00]} 5. d4 {[%clk 0:03:03]}  d6 {[%clk 0:02:59]} 6. c4 {[%clk 0:03:04]}  Nc6 {[%clk 0:03:00]} 7. Nc3 {[%clk 0:03:03]}  Bf5 {[%clk 0:03:00]} 8. Nh4 {[%clk 0:03:01]}  Bd7 {[%clk 0:02:59]} 9. Nf3 {[%clk 0:03:00]}  e5 {[%clk 0:02:58]} 10. dxe5 {[%clk 0:02:56]}  dxe5 {[%clk 0:02:55]} 11. Nd5 {[%clk 0:02:52]}  e4 {[%clk 0:02:49]} 12. Ng5 {[%clk 0:02:46]}  Nxd5 {[%clk 0:02:28]} 13. cxd5 {[%clk 0:02:46]}  Nd4 {[%clk 0:02:29]} 14. Nxe4 {[%clk 0:02:35]}  c6 {[%clk 0:02:15]} 15. d6 {[%clk 0:02:01]}  Bg4 {[%clk 0:02:11]} 16. f3 {[%clk 0:01:54]}  Bf5 {[%clk 0:02:09]} 17. Be3 {[%clk 0:01:41]}  Bxe4 {[%clk 0:02:09]} 18. Bxd4 {[%clk 0:01:39]}  Bd5 {[%clk 0:01:36]} 19. e4 {[%clk 0:01:33]}  Be6 {[%clk 0:01:25]} 20. Bxg7 {[%clk 0:01:33]}  Kxg7 {[%clk 0:01:25]} 21. Qd4+ {[%clk 0:01:34]}  f6 {[%clk 0:01:19]} 22. f4 {[%clk 0:01:30]}  Qb6 {[%clk 0:01:19]} 23. Qxb6 {[%clk 0:01:29]}  axb6 {[%clk 0:01:20]} 24. a3 {[%clk 0:01:29]}  Ra5 {[%clk 0:01:18]} 25. Rfd1 {[%clk 0:01:23]}  Rd8 {[%clk 0:01:15]} 26. Rd2 {[%clk 0:01:23]}  g5 {[%clk 0:01:08]} 27. Re1 {[%clk 0:01:01]}  h5 {[%clk 0:00:57]} 28. Bf3 {[%clk 0:00:57]}  h4 {[%clk 0:00:56]} 29. Kf2 {[%clk 0:00:54]}  Rb5 {[%clk 0:00:38]} 30. gxh4 {[%clk 0:00:40]}  gxf4 {[%clk 0:00:38]} 31. h5 {[%clk 0:00:35]}  Bf7 {[%clk 0:00:29]} 32. Bg4 {[%clk 0:00:29]}  Bxh5 {[%clk 0:00:25]} 33. Bxh5 {[%clk 0:00:24]}  Rxh5 {[%clk 0:00:26]} 34. Kf3 {[%clk 0:00:25]}  Kf7 {[%clk 0:00:24]} 35. Kxf4 {[%clk 0:00:23]}  Ke6 {[%clk 0:00:24]} 36. Red1 {[%clk 0:00:18]}  Rh3 {[%clk 0:00:19]} 37. Kg4 {[%clk 0:00:17]}  Rdh8 {[%clk 0:00:19]} 0-1


[Site "https://www.chess.com"]

[Event "Titled Tuesday Blitz May 03 Early 2022"]
[White "Stevens, Christian"]
[Black "Namitbir Singh Walia"]
[WhiteFideId "2604450"]
[BlackFideId "35071068"]
[WhiteElo "2497"]
[BlackElo "1565"]
[Result "1-0"]
[Round "10"]
[TimeControl "180+1"]
[Date "2022.05.03"]
[WhiteClock "0:00:09"]
[BlackClock "0:00:01"]

1. d4 {[%clk 0:03:00]}  Nf6 {[%clk 0:03:00]} 2. c4 {[%clk 0:03:00]}  e6 {[%clk 0:03:00]} 3. Nc3 {[%clk 0:02:58]}  Bb4 {[%clk 0:02:59]} 4. e3 {[%clk 0:02:56]}  c5 {[%clk 0:02:54]} 5. Nf3 {[%clk 0:02:54]}  b6 {[%clk 0:02:52]} 6. Bd3 {[%clk 0:02:54]}  Bb7 {[%clk 0:02:51]} 7. O-O {[%clk 0:02:54]}  Bxc3 {[%clk 0:02:49]} 8. bxc3 {[%clk 0:02:53]}  d6 {[%clk 0:02:49]} 9. Nd2 {[%clk 0:02:51]}  Nbd7 {[%clk 0:02:47]} 10. e4 {[%clk 0:02:51]}  O-O {[%clk 0:02:46]} 11. f4 {[%clk 0:02:47]}  Rc8 {[%clk 0:02:26]} 12. Rf3 {[%clk 0:02:41]}  Ne8 {[%clk 0:02:16]} 13. Rh3 {[%clk 0:02:34]}  f5 {[%clk 0:02:13]} 14. exf5 {[%clk 0:02:19]}  exf5 {[%clk 0:02:12]} 15. d5 {[%clk 0:02:03]}  g6 {[%clk 0:02:05]} 16. Nf3 {[%clk 0:02:00]}  Ndf6 {[%clk 0:02:01]} 17. Ng5 {[%clk 0:01:59]}  Ng7 {[%clk 0:01:58]} 18. Qe1 {[%clk 0:01:49]}  Nfh5 {[%clk 0:01:24]} 19. Qf2 {[%clk 0:01:34]}  Qf6 {[%clk 0:01:19]} 20. Bd2 {[%clk 0:01:32]}  Rce8 {[%clk 0:01:18]} 21. a4 {[%clk 0:01:29]}  h6 {[%clk 0:00:48]} 22. Nf3 {[%clk 0:01:28]}  Re7 {[%clk 0:00:47]} 23. Kh1 {[%clk 0:01:23]}  Rfe8 {[%clk 0:00:46]} 24. Rg1 {[%clk 0:01:22]}  Bc8 {[%clk 0:00:43]} 25. Nh4 {[%clk 0:01:14]}  Bd7 {[%clk 0:00:32]} 26. Ra1 {[%clk 0:01:05]}  a5 {[%clk 0:00:21]} 27. Nf3 {[%clk 0:00:52]}  Kf7 {[%clk 0:00:18]} 28. Rh4 {[%clk 0:00:49]}  Kg8 {[%clk 0:00:16]} 29. h3 {[%clk 0:00:49]}  Qf7 {[%clk 0:00:11]} 30. g4 {[%clk 0:00:45]}  fxg4 {[%clk 0:00:12]} 31. hxg4 {[%clk 0:00:44]}  Nxf4 {[%clk 0:00:12]} 32. Bc2 {[%clk 0:00:25]}  Re2 {[%clk 0:00:09]} 33. Qg3 {[%clk 0:00:24]}  g5 {[%clk 0:00:07]} 34. Rxh6 {[%clk 0:00:24]}  Rg2 {[%clk 0:00:07]} 35. Nxg5 {[%clk 0:00:19]}  Rxg3 {[%clk 0:00:07]} 36. Nxf7 {[%clk 0:00:18]}  Rxg4 {[%clk 0:00:04]} 37. Nxd6 {[%clk 0:00:13]}  Re2 {[%clk 0:00:04]} 38. Bh7+ {[%clk 0:00:11]}  Kf8 {[%clk 0:00:03]} 39. Rf6+ {[%clk 0:00:11]}  Ke7 {[%clk 0:00:03]} 40. Rxf4 {[%clk 0:00:11]}  Rg5 {[%clk 0:00:03]} 41. Re4+ {[%clk 0:00:10]}  Rxe4 {[%clk 0:00:01]} 42. Bxg5+ {[%clk 0:00:09]} 1-0


[Site "https://www.chess.com"]

[Event "Titled Tuesday Blitz May 03 Early 2022"]
[White "Tanenbaum, Zachary"]
[Black "Kozak, Antoni"]
[WhiteFideId "2060850"]
[BlackFideId "21832030"]
[WhiteElo "2168"]
[BlackElo "2236"]
[Result "0-1"]
[Round "10"]
[TimeControl "180+1"]
[Date "2022.05.03"]
[WhiteClock "0:00:06"]
[BlackClock "0:00:05"]

1. e4 {[%clk 0:02:59]}  c6 {[%clk 0:02:59]} 2. d4 {[%clk 0:02:59]}  d5 {[%clk 0:02:59]} 3. exd5 {[%clk 0:03:00]}  cxd5 {[%clk 0:02:59]} 4. Bd3 {[%clk 0:03:01]}  Nc6 {[%clk 0:02:59]} 5. c3 {[%clk 0:03:01]}  Qc7 {[%clk 0:02:59]} 6. Bg5 {[%clk 0:03:01]}  Nf6 {[%clk 0:02:53]} 7. Nd2 {[%clk 0:03:01]}  Bg4 {[%clk 0:02:52]} 8. Ngf3 {[%clk 0:03:01]}  e6 {[%clk 0:02:52]} 9. Bh4 {[%clk 0:03:00]}  Bd6 {[%clk 0:02:50]} 10. Qc2 {[%clk 0:03:00]}  Bh5 {[%clk 0:02:47]} 11. O-O {[%clk 0:02:59]}  Bg6 {[%clk 0:02:47]} 12. Bg3 {[%clk 0:02:57]}  Bxg3 {[%clk 0:02:43]} 13. hxg3 {[%clk 0:02:57]}  Bxd3 {[%clk 0:02:35]} 14. Qxd3 {[%clk 0:02:58]}  O-O {[%clk 0:02:35]} 15. Rfe1 {[%clk 0:02:56]}  b5 {[%clk 0:02:25]} 16. Ne5 {[%clk 0:02:44]}  Nxe5 {[%clk 0:02:23]} 17. dxe5 {[%clk 0:02:45]}  Nd7 {[%clk 0:02:23]} 18. Nf3 {[%clk 0:02:42]}  Qc4 {[%clk 0:02:15]} 19. Qe3 {[%clk 0:02:40]}  Rfc8 {[%clk 0:02:10]} 20. Red1 {[%clk 0:02:32]}  Nf8 {[%clk 0:01:53]} 21. Rd4 {[%clk 0:02:24]}  Qc5 {[%clk 0:01:53]} 22. a4 {[%clk 0:02:16]}  bxa4 {[%clk 0:01:49]} 23. Qd2 {[%clk 0:02:11]}  Rab8 {[%clk 0:01:40]} 24. Rdxa4 {[%clk 0:02:11]}  Rb7 {[%clk 0:01:40]} 25. Ra5 {[%clk 0:01:46]}  Qb6 {[%clk 0:01:38]} 26. R1a2 {[%clk 0:01:40]}  h6 {[%clk 0:01:37]} 27. Ra6 {[%clk 0:01:40]}  Qc5 {[%clk 0:01:35]} 28. R2a5 {[%clk 0:01:39]}  Qc7 {[%clk 0:01:34]} 29. Qf4 {[%clk 0:01:14]}  Ng6 {[%clk 0:01:28]} 30. Qe3 {[%clk 0:00:54]}  Rxb2 {[%clk 0:01:19]} 31. Rxa7 {[%clk 0:00:54]}  Qxc3 {[%clk 0:01:18]} 32. Ra8 {[%clk 0:00:54]}  Qc6 {[%clk 0:01:04]} 33. Qa3 {[%clk 0:00:43]}  Rbb8 {[%clk 0:00:57]} 34. Rxb8 {[%clk 0:00:33]}  Rxb8 {[%clk 0:00:56]} 35. Kh2 {[%clk 0:00:27]}  Qb6 {[%clk 0:00:52]} 36. Qa2 {[%clk 0:00:14]}  Rd8 {[%clk 0:00:45]} 37. Ra6 {[%clk 0:00:13]}  Qb8 {[%clk 0:00:44]} 38. Qa1 {[%clk 0:00:13]}  d4 {[%clk 0:00:34]} 39. Nxd4 {[%clk 0:00:10]}  Nxe5 {[%clk 0:00:33]} 40. Nc6 {[%clk 0:00:07]}  Nxc6 {[%clk 0:00:18]} 41. Rxc6 {[%clk 0:00:08]}  Qb5 {[%clk 0:00:13]} 42. Rc1 {[%clk 0:00:04]}  Qh5+ {[%clk 0:00:13]} 43. Kg1 {[%clk 0:00:04]}  Qf5 {[%clk 0:00:13]} 44. Qb1 {[%clk 0:00:04]}  Qd5 {[%clk 0:00:12]} 45. Qc2 {[%clk 0:00:05]}  g6 {[%clk 0:00:12]} 46. Re1 {[%clk 0:00:05]}  Qg5 {[%clk 0:00:10]} 47. Qc7 {[%clk 0:00:05]}  Rd2 {[%clk 0:00:10]} 48. Rb1 {[%clk 0:00:05]}  Qf6 {[%clk 0:00:05]} 49. Qb6 {[%clk 0:00:05]}  Kg7 {[%clk 0:00:05]} 50. Kf1 {[%clk 0:00:04]}  Rd4 {[%clk 0:00:03]} 51. Kg1 {[%clk 0:00:04]}  Rd2 {[%clk 0:00:03]} 52. Qe3 {[%clk 0:00:05]}  Rd5 {[%clk 0:00:03]} 53. Re1 {[%clk 0:00:05]}  Rf5 {[%clk 0:00:03]} 54. Qd2 {[%clk 0:00:05]}  h5 {[%clk 0:00:04]} 55. Qe2 {[%clk 0:00:05]}  h4 {[%clk 0:00:04]} 56. gxh4 {[%clk 0:00:05]}  Qxh4 {[%clk 0:00:04]} 57. Qb2+ {[%clk 0:00:06]}  Kh7 {[%clk 0:00:03]} 58. Ra1 {[%clk 0:00:05]}  Rh5 {[%clk 0:00:03]} 59. Kf1 {[%clk 0:00:03]}  Qh1+ {[%clk 0:00:03]} 60. Ke2 {[%clk 0:00:03]}  Qxg2 {[%clk 0:00:04]} 61. Ra7 {[%clk 0:00:03]}  Qe4+ {[%clk 0:00:04]} 62. Kd2 {[%clk 0:00:02]}  Rd5+ {[%clk 0:00:05]} 63. Kc1 {[%clk 0:00:02]}  Qe1+ {[%clk 0:00:05]} 64. Kc2 {[%clk 0:00:02]}  Qxf2+ {[%clk 0:00:04]} 65. Kb1 {[%clk 0:00:02]}  Qxa7 {[%clk 0:00:05]} 66. Qh2+ {[%clk 0:00:02]}  Kg8 {[%clk 0:00:05]} 67. Qb2 {[%clk 0:00:03]}  Qg1+ {[%clk 0:00:04]} 68. Ka2 {[%clk 0:00:03]}  Ra5+ {[%clk 0:00:04]} 69. Kb3 {[%clk 0:00:04]}  Rb5+ {[%clk 0:00:04]} 70. Kc2 {[%clk 0:00:04]}  Rxb2+ {[%clk 0:00:05]} 71. Kd3 {[%clk 0:00:05]}  Qb6 {[%clk 0:00:05]} 72. Ke4 {[%clk 0:00:06]}  Rb4+ {[%clk 0:00:05]} 73. Ke5 {[%clk 0:00:06]}  Qd4# {[%clk 0:00:05]} 0-1


[Site "https://www.chess.com"]